Cogmind - Beta 16 @@@ ROGUE MODE // 2025.11.21 @ 20:39:28 Player: Lazz Result: Destroyed by Autobeam Turret with Autobeam Performance ------------- Evolutions (0) 0 Regions Visited (2) 400 Robots Destroyed (7) 35 Value Destroyed (69) 69 Prototype IDs (0) 0 Alien Tech Used (0) 0 Bonus (0) 0 TOTAL SCORE: 504 Bonus ------- None Cogmind --------- Core Integrity 0/250 Matter 275/300 Energy 72/100 System Corruption 0% Temperature Cool (8) Movement Treading (240) Ox1 Location -10/Subcaves Parts ------- > --- POWER (1) -------- (None) > --- PROPULSION (2) --- Light Treads Light Treads > --- UTILITY (2) ------ Huge Storage Unit > --- WEAPON (2) ------- (None) > --- INVENTORY (25) --- Ion Engine Subdweller Power Source Subdweller Power Source Makeshift Power Source Makeshift Power Source Spiked Treads Disposable Heat Sink Disposable Heat Sink Small Storage Unit Makeshift Trap Scanner Subdweller Optics Utility Shielding Makeshift Hacking Suite Tractor Beam Light Assault Rifle Scrap Shield Fragment (49) Scrap Shield Fragment (48) Scrap Shield Fragment (48) Scrap Shield Fragment (39) Peak State ------------ > --- POWER ------------ Ion Engine > --- PROPULSION ------- Wheel Wheel > --- UTILITY ---------- Huge Storage Unit Improved Terrain Scanner > --- WEAPON ----------- EM Pulse Gun Small Laser > --- INVENTORY -------- Ion Engine Subdweller Power Source Subdweller Power Source Makeshift Power Source Makeshift Power Source Light Treads Light Treads Spiked Treads Wheel Compact Wheel Disposable Heat Sink Disposable Heat Sink Small Storage Unit Makeshift Trap Scanner Subdweller Optics Utility Shielding Tractor Beam Light Assault Rifle Scrap Shield Fragment Scrap Shield Fragment Scrap Shield Fragment Scrap Shield Fragment [Rating: 13] Favorites ----------- Power Ion Engine Engine Ion Engine Propulsion Wheel Treads Light Treads Wheel Wheel Utility Improved Terrain Scanner Device Improved Terrain Scanner Storage Small Storage Unit Weapon Small Laser Energy Gun Small Laser Ballistic Gun Light Assault Rifle Build | -11 -10 -10 ------- Run | Yrd Mat Sub Slots Evolved . | . . . Power . | . . . Propulsion . | . . . Utility . | . . . Weapon . | . . . Parts Attached 14 | 8 . 6 Power 1 | 1 . . Engine 1 | 1 . . Core . | . . . Reactor . | . . . Propulsion 6 | 2 . 4 Treads 2 | 2 . . Leg . | . . . Wheel 4 | . . 4 Hover . | . . . Flight . | . . . Utility 4 | 3 . 1 Device 2 | 2 . . Storage 2 | 1 . 1 Processor . | . . . Hackware . | . . . Protection . | . . . Artifact . | . . . Weapon 3 | 2 . 1 Energy Gun 2 | 1 . 1 Energy Cannon . | . . . Ballistic Gun 1 | 1 . . Ballistic Cannon . | . . . Launcher . | . . . Special Weapon . | . . . Impact Weapon . | . . . Slashing Weapon . | . . . Piercing Weapon . | . . . Special Melee Weapon . | . . . Unidentified Prototypes . | . . . Parts Lost 8 | . . 8 Power 1 | . . 1 Propulsion 4 | . . 4 Utility 1 | . . 1 Weapon 2 | . . 2 Highest Loss Streak 8 | . . 8 To Critical Strikes . | . . . Average Backups 11 | 5 7 14 Power 2 | . 1 3 Propulsion 4 | 3 4 4 Utility 3 | . 1 5 Weapon . | . 1 1 Tool/Special . | . . . Unused Backups 14 | 2 . 12 Power 5 | . . 5 Propulsion 3 | 2 . 1 Utility 6 | . . 6 Weapon . | . . . Tool/Special . | . . . Average Slot Usage (%) 98 | . 100 98 Engine 13 | . 14 13 Treads 6 | . 28 . Wheel 21 | . . 27 Device 13 | . 14 13 Storage 14 | . 14 14 Energy Gun 22 | . 14 25 Ballistic Gun 4 | . 14 1 Peak Build Rating 13 | 9 9 13 Average Rating 9 | 6 9 11 On Entrance 6 | . 9 9 Avg Prop Armor Cover (%) . | . . . Naked Turns . | . . . Heaviest Build 89 | 13 13 89 Greatest Support 40 | 40 40 40 Greatest Overweight (x) 8 | 3 . 8 Average Overweight (x) 1 | . . 2 Largest Inventory Capacity 25 | 8 8 25 Average Capacity 15 | 7 8 20 Most Carried 23 | 7 8 23 Average Carried 12 | 5 7 17 Final Capacity 25 | 8 8 25 Final Carried 19 | 7 8 19 Class Distribution -------------------- 100% | Mutant Dominant Class ---------------- Mutant | -10/Materials Mutant | -10/Subcaves Resources | -11 -10 -10 ----------- Run | Yrd Mat Sub Matter Collected 338 | 298 . 40 Remotely 76 | 76 . . Salvage Created 245 | 192 . 53 Parts 17 | 13 . 4 Haulers Intercepted . | . . . Recyclers Shooed 1 | 1 . . Parts Field Recycled . | . . . Retrieved Matter . | . . . Parts Self-Destructed 9 | . . 9 Prevented . | . . . Parts Restored . | . . . Kills | -11 -10 -10 ------- Run | Yrd Mat Sub Combat Hostiles Destroyed 1 | . . 1 Guns 1 | . . 1 Classes Destroyed 4 | 3 . 1 Worker 2 | 2 . . Tunneler 3 | 3 . . Recycler 1 | 1 . . Subdweller 1 | . . 1 Best Kill Streak 2 | 2 . 1 Combat Bots Only 1 | . . 1 Max Kills in Single Turn 1 | 1 . 1 Gunslinging . | . . . Exploded . | . . . Melee . | . . . Uniques/NPCs Destroyed . | . . . Combat | -11 -10 -10 -------- Run | Yrd Mat Sub Hostile Shots Fired 132 | . . 132 Missed 48 | . . 48 Hits 84 | . . 84 Projectile 84 | . . 84 Damage Taken 688 | . . 688 Core 252 | . . 252 Absorbed by Shields . | . . . Core Remaining (%) 100 | 100 . . Volleys Fired 26 | 18 . 8 Largest 2 | 2 . 2 Hottest 80 | 60 . 80 Shots Fired 52 | 36 . 16 Gun 52 | 36 . 16 Cannon . | . . . Launcher . | . . . Special . | . . . Kinetic 18 | 18 . . Thermal 26 | 18 . 8 Explosive . | . . . Electromagnetic 8 | . . 8 Robot Hit Streak 5 | 3 . 5 Robot Miss Streak 8 | 8 . 1 Penetration Max . | . . . Secondary Targets . | . . . Shots Hit Robots 25 | 14 . 11 Core Hits 12 | 9 . 3 Critical Kills . | . . . Critical Parts Destroyed . | . . . Critical Strikes . | . . . Melee Attacks . | . . . Impact . | . . . Slashing . | . . . Piercing . | . . . Sneak Attacks . | . . . Combat Hostiles . | . . . Follow-up Attacks . | . . . Damage Inflicted 260 | 137 . 123 Guns 260 | 137 . 123 Cannons . | . . . Explosions . | . . . Melee . | . . . Ramming . | . . . Kinetic 49 | 49 . . Thermal 132 | 88 . 44 Explosive . | . . . Electromagnetic 79 | . . 79 Impact . | . . . Slashing . | . . . Piercing . | . . . Highest Corruption . | . . . Average Corruption . | . . . Corruption Purged . | . . . Corruption Blocked . | . . . Overload Shots . | . . . Overflow Damage . | . . . Projectiles . | . . . Explosions . | . . . Melee . | . . . Knockbacks . | . . . Impact . | . . . Kinetic . | . . . Secondary . | . . . Self-Inflicted Damage . | . . . Shots . | . . . Rammed . | . . . Targets Rammed . | . . . Kicked . | . . . Crushed . | . . . Highest Temperature 40 | 40 . 10 Average Temperature 17 | 17 . 10 Received Heat Transfer 336 | . . 336 Siege Activations . | . . . Martial Activations . | . . . Shielding Activations . | . . . Robots Disrupted . | . . . Combat Hostiles . | . . . Robots Corrupted . | . . . Combat Hostiles . | . . . Parts Fried . | . . . Impact Corruptions . | . . . Robots Melted . | . . . Combat Hostiles . | . . . Parts Melted 1 | . . 1 Heat Transferred 300 | 200 . 100 Parts Sabotaged . | . . . Parts Stolen . | . . . Parts Stripped . | . . . Power Chain Reactions . | . . . Alert | -11 -10 -10 ------- Run | Yrd Mat Sub Maximum Alert Level . | . . . Low Security (%) 100 | 100 100 . Level 1 . | . . . Level 2 . | . . . Level 3 . | . . . Level 4 . | . . . Level 5 . | . . . High Security . | . . . Max Security . | . . . Peak Influence 10 | 10 . . Initial . | . . . Average . | . . . Influence Increases 30 | 30 . . Destroy 0b10 Robot/NC 30 | 30 . . Influence Decreases 30 | 30 . . Time Decay 30 | 30 . . Squads Dispatched . | . . . Investigation . | . . . Extermination . | . . . Reinforcement . | . . . Assault . | . . . Garrison . | . . . Intercept . | . . . Searches Triggered . | . . . Construction Impeded . | . . . Haulers Reinforced . | . . . Active Scanning Responses . | . . . Cargo Convoy Interrupts . | . . . Stealth | -11 -10 -10 --------- Run | Yrd Mat Sub Distress Signals . | . . . Communications Jammed . | . . . Distress Signals . | . . . Times Spotted 6 | . . 6 Peak Tracking Total 5 | . . 5 Tactical Retreats . | . . . Traps | -11 -10 -10 ------- Run | Yrd Mat Sub Traps Triggered 2 | . . 2 Indirectly . | . . . Trap Hack Attempts . | . . . Triggered . | . . . Disarmed . | . . . Reprogrammed . | . . . Reused . | . . . Traps Extracted . | . . . Installed . | . . . Triggered . | . . . Machines | -11 -10 -10 ---------- Run | Yrd Mat Sub Machines Disabled . | . . . Max in Single Turn . | . . . Machines Repaired . | . . . Machines Dismantled . | . . . Machines Sabotaged . | . . . Overloaded Fab Kills . | . . . Hacking | -11 -10 -10 --------- Run | Yrd Mat Sub Machines Accessed . | . . . Terminals . | . . . Fabricators . | . . . Repair Stations . | . . . Recycling Units . | . . . Scanalyzers . | . . . Garrison Access . | . . . Total Hacks . | . . . Successful . | . . . Failed . | . . . Catastrophic . | . . . Database Lockouts . | . . . Manual . | . . . Terminals . | . . . Fabricators . | . . . Repair Stations . | . . . Recycling Units . | . . . Scanalyzers . | . . . Garrison Access . | . . . Terminal Hacks . | . . . Fabricator Hacks . | . . . Repair Station Hacks . | . . . Recycling Unit Hacks . | . . . Scanalyzer . | . . . Garrison Access Hacks . | . . . Unauthorized Hacks . | . . . Terminals . | . . . Fabricators . | . . . Repair Stations . | . . . Recycling Units . | . . . Scanalyzers . | . . . Garrison Access . | . . . Data Cores Recovered . | . . . Used . | . . . Hacking Detections . | . . . Full Trace Events . | . . . Feedback Events . | . . . Feedback Blocked . | . . . Robot Schematics Acquired . | . . . Robots Built . | . . . Authchips . | . . . Time . | . . . Total Robot Build Rating . | . . . Part Schematics Acquired . | . . . Parts Built . | . . . Authchips . | . . . Time . | . . . Total Part Build Rating . | . . . Part Studies Acquired . | . . . Parts Repaired . | . . . Time . | . . . Parts Recycled . | . . . Recycled Matter . | . . . Retrieved Matter . | . . . Retrieved Components . | . . . Parts Scanalyzed . | . . . Part Schematics Acquired . | . . . Parts Damaged . | . . . Bothacking | -11 -10 -10 ------------ Run | Yrd Mat Sub Used RIF Installer . | . . . Robots Hacked . | . . . Non-combat . | . . . Combat . | . . . Robot Hacks Applied . | . . . Relay Couplers Released . | . . . Fabnet Peak Effective % . | . . . Robots Rewired . | . . . Allies Hacked . | . . . Hacks Repelled . | . . . Allies | -11 -10 -10 -------- Run | Yrd Mat Sub Total Allies . | . . . Largest Group . | . . . Highest-Rated Group . | . . . Highest-Rated Ally . | . . . Total Orders . | . . . Ally Attacks . | . . . Total Damage . | . . . Kills . | . . . Allies Corrupted . | . . . Allies Melted . | . . . Intel | -11 -10 -10 ------- Run | Yrd Mat Sub Active Infowar (turns) 817 | 38 177 602 Terrain 817 | 38 177 602 Robot Analysis Total . | . . . Derelict Logs Recovered . | . . . Drone Launches . | . . . Drone Recoveries . | . . . Exploration | -11 -10 -10 ------------- Run | Yrd Mat Sub Turns Passed 1035 | 241 177 617 Spaces Moved 652 | 110 95 447 Core 9 | 9 . . Treads 198 | 101 95 2 Legs . | . . . Wheels 445 | . . 445 Hover . | . . . Flight . | . . . Fastest Speed 50 | 50 160 80 Average Speed 133 | 155 160 122 Slowest Speed 240 | 200 160 240 Overloaded Moves . | . . . Propulsion Burnouts . | . . . Robots Hopped . | . . . Potential Cave-ins . | . . . Cave-ins Triggered . | . . . Exploration Rate (%) 15 | 6 11 30 Regions Visited 2 Branch Regions 1 Pre-discovered Areas . | . . . Known Exits Taken . | . . . Unknown Exits Taken 2 | 1 1 . Scrap Searched 2 | . . 2 Spaces Dug . | . . . Terrain Destroyed . | . . . Melee . | . . . Projectile . | . . . AOE . | . . . Terrain Rammed . | . . . Walls Destroyed . | . . . Machines Disabled . | . . . Actions | -11 -10 -10 --------- Run | Yrd Mat Sub Total 764 | 146 120 498 Wait 45 | . 25 20 Move 650 | 109 94 447 Hop . | . . . Pick Up 24 | 8 1 15 Fast Attach 8 | 8 . . Attach 4 | . . 4 Detach 1 | 1 . . Swap 4 | . . 4 Drop 2 | 2 . . Fire 26 | 18 . 8 Melee . | . . . Ram . | . . . Kick . | . . . Crush . | . . . Escape Stasis . | . . . Rewire . | . . . Trap . | . . . Miscellaneous . | . . . Route ------- -11/Scrapyard -10/Materials -10/Subcaves (discovered 1 exit: [*Rec]) History --------- Turn | Location | Event 19 | -11/Scrapyard | Discovered new exit (range 15) 242 | -11/Scrapyard | Entered Materials 300 | -10/Materials | Build established: Mutant 400 | -10/Materials | Discovered new exit (range 7) 419 | -10/Materials | Entered Subcaves 420 | -10/Subcaves | Approached by a straggling Scientist 1011 | -10/Subcaves | Discovered new exit (range 16) 1017 | -10/Subcaves | Core integrity fell below 50% 1029 | -10/Subcaves | Core integrity fell below 20% 1036 | -10/Subcaves | Destroyed by Autobeam Turret with Autobeam Last Messages --------------- 00793_ Acquired Mak. Power Source. 00794_ Subatomizers dissect the Mak. Hacking Suite. 00795_ Acquired Mak. Hacking Suite. 01004_ Subatomizers dissect the Sub. Optics. 01008_ EM Pulse Gun destroyed. 01010_ S-10 Pest destroyed. 01011_ EXIT=FOUND 01014_ Wheel destroyed. 01018_ Sml. Laser destroyed. 01021_ Imp. Terrain Scanner destroyed. 01021_ Wheel destroyed. 01023_ S-10 Pest destroyed. 01024_ Ion Engine destroyed. 01025_ Subatomizers dissect the Sub. Optics. 01029_ Lgt. Assault Rifle fries itself beyond repair. 01030_ Wheel destroyed. 01031_ Com. Wheel destroyed. 01035_ Subatomizers dissect the Sub. Optics. Map ----- +----------------------------------------------------+ | ?????????????????????????????????????????????????? | | ???????????????????????????????????????????????#?? | | ?????????????????????????????????????????????????? | | ?????????????????????????????????????????????????? | | ?????????????????????????????????????????????????? | | ?????????????????????????????????????????????????? | | ?????????????????????????????????????????????????? | | ?????????????????????????????????????????????????? | | ?????????????????????????????????????????????????? | | ?????????????????????????????????????????????????? | | ?????????????????????????????????????????????????? | | ???????????? ?#??????????????????????????????????? | | ????????????? ##????????????????????????????????? | | ?????????????? ####?????????????????????????????? | | ?????????????? ##????????????????????????????? | | ??????????????# #???????????????????????????#? | | ??????????????# #????????????????????????????? | | ??????????????# #????????????????????????????? | | ??????????##??# #????????????????????????????? | | ??????????# ### #?????????????????????????????? | | ??????#???# ## #?########????? ???????????????? | | ????####??# ###" """#???? ????????????? | | ????#" ##### ## #??? ?????????????? | | ????#"""#"#" # "#??? ???# #???????? | | ?????#" """" %% t "##?? #?## ??????? | | ?????# " % [! = @ <#?? ## ??????? | | ????## ####" s%& t""##?? ??????? | | ????# #??##"=%&*### "#???# ??????? | | ????# ##??# & ##?# "#???# #??????? | | ????## " ### #??#" """##### #???????? | | ?????# ##### ##?########## ## #????????? | | ?????# ######?## #???#?????? | | ?????# #?##?# #????#????????? | | ?????## # # ## ###???#??#????? | | ??????### ### ##???#??????? | | ?????#??## ## # #???#? ????? | | ?????????# ## ## ### #?????? ???? | | ????????## ### #?# #### ##?####?????? | | ????????# # #?## ##### ##??#" ?????? | | ????###### #??# ##?# ##??#""#???#?? | | #???# ##### #?## ##?#""####??? | | ????## ##### #### ###" %%"#### | | ?????# ## ## ## # # | | #????##### ### ## ## ## | | ?????????# ##?#### ### ###"" ## | | ?????????## ##??### ##?# ######" | | ??????????## ##??## #?## ### | | ???????????## ##??## ###??## | | ?????#????#?## ##??## ##????## ## | | ??????????#??# ##??# ##?????# ### | +----------------------------------------------------+ Best States ------------- Heat Dissipation 25 Energy Generation 10 Energy Capacity 250 Matter Stores 300 Matter Capacity 300 Sight Range 16 Terrain Scan Range 16 Terrain Scan Density 10 Evasion (%) 44 Recoil Reduction 2 Item Schematics ----------------- None Robot Schematics ------------------ None Fabricated ------------ Nothing Repaired ---------- Nothing Studied --------- None Alien Tech Used ----------------- None Achievements -------------- None Challenges ------------ None Game ------ Seed DispersalConstructBarrier Manual? 0 Play Time 00:07:25 Cumulative 94.4 hours Start 2025.11.21 @ 20:32:37 End 2025.11.21 @ 20:39:28 Sessions 1 Manual Loads 0 Difficulty Rogue Special Mode None Game No. 134 Rogue 134 Adventurer 0 Explorer 0 Win Type - Total 1 Types 1/0/0/0/0/0/0/0/0/0 Lore% 57 Gallery% 52 Achievement% 39 Wizard Run 0 Options --------- Layout 2 ASCII 0 Keyboard 0 Movement Numpad Keybinds 0 Fullscreen 1 Font 24/Smallcaps Map View 50x44 Zoom Use 0% Tactical HUD 1 Map Filters NONE Filters NONE Steam 1 RUN: a7c54880-6386-45e9-bf91-88682dad35a5